fUSD/lending_fUSD_20251031
["ID","MTS","AMOUNT","RATE_DAILY","PERIOD"]
[392775548,1761940256384,-160.051952,0.00028767,30]
[392775549,1761940256394,-160.051952,0.00028767,30]
[392775550,1761940256405,-160.051952,0.00028767,30]
[392775551,1761940256414,-160.051952,0.00028767,30]
[392775552,1761940256423,-160.051952,0.00028767,30]
[392775553,1761940256432,-160.051952,0.00028767,30]
[392775554,1761940256441,-160.051952,0.00028767,30]
[392775555,1761940256450,-160.051952,0.00028767,30]
[392775556,1761940256459,-500.0,0.00028847,7]
[392775557,1761940256469,-500.0,0.00028882,7]
[392775558,1761940256478,-500.0,0.00028885,7]
[392775559,1761940256487,-500.0,0.0002896,7]
[392775560,1761940256496,-177.0,0.00028997,14]
[392775561,1761940256505,-10055.0,0.00029,2]
[392775562,1761940256514,-17554.85113468,0.00029,2]
[392775563,1761940256523,-50120.11255214,0.00029,7]
[392775564,1761940256542,-151.0,0.000249,7]
[392775565,1761940256551,-2218.88744786,0.00029,7]
[392775566,1761940256560,-160.0,0.00029,30]
[392775567,1761940256569,-477.23814323,0.00029,30]
[392775568,1761940256578,-550.0,0.00029,2]
[392775569,1761940256587,-179.463212,0.00029,7]
[392775570,1761940256596,-247.654544,0.00029,7]
[392775571,1761940256606,-400.688541,0.00029,7]
[392775572,1761940256615,-179.463212,0.00029015,7]
[392775573,1761940256625,-152.530922,0.00029015,7]
[392775574,1761940256634,-247.654544,0.00029015,7]
[392775575,1761940256643,-400.688541,0.00029015,7]
[392775576,1761940256652,-179.463212,0.0002903,7]
[392775577,1761940256662,-154.730149,0.0002903,7]
[392775578,1761940256672,-152.530922,0.0002903,7]
[392775579,1761940256681,-247.654544,0.0002903,7]
[392775580,1761940256690,-400.688541,0.0002903,7]
[392775581,1761940256700,-2524.75,0.00029041,30]
[392775582,1761940256709,-237.13,0.00029041,12]
[392775583,1761940256718,-750.0,0.00029041,2]
[392775584,1761940256727,-304.49,0.00029041,2]
[392775585,1761940256736,-179.463212,0.00029045,7]
[392775586,1761940256745,-154.730149,0.00029045,7]
[392775587,1761940256755,-152.530922,0.00029045,7]
[392775588,1761940256764,-151.174963,0.00029045,7]
[392775589,1761940256774,-247.654544,0.00029045,7]
[392775590,1761940256783,-400.688541,0.00029045,7]
[392775591,1761940256793,-179.463212,0.0002906,7]
[392775592,1761940256802,-154.730149,0.0002906,7]
[392775593,1761940256811,-152.530922,0.0002906,7]
[392775594,1761940256820,-151.174963,0.0002906,7]
[392775595,1761940256829,-247.654544,0.0002906,7]
[392775596,1761940256838,-400.688541,0.0002906,7]
[392775597,1761940256847,-152.0,0.00029085,12]
[392775598,1761940256857,-169759.805872,0.00029121,7]
[392775599,1761940256866,-500.0,0.00029122,7]
[392775600,1761940256875,-12932.54,0.000292,7]
[392775601,1761940256884,-500.0,0.00029208,7]
[392775602,1761940256893,-3000.0,0.00029234,7]
[392775603,1761940256903,-697.83,0.00029239,2]
[392775604,1761940256912,-697.12,0.00029239,2]
[392775605,1761940256921,-476.35,0.00029239,2]
[392775606,1761940256931,-1295.64,0.00029239,2]
[392775607,1761940256940,-946.67,0.00029239,2]
[392775608,1761940256950,-476.35,0.0002924,2]
[392775609,1761940256959,-476.35,0.0002924,2]
[392775610,1761940256968,-952.7,0.0002924,2]
[392775611,1761940256977,-179.463212,0.0002925,14]
[392775612,1761940256987,-154.730149,0.0002925,14]
[392775613,1761940256996,-500.0,0.00029299,7]
[392775614,1761940257005,-646.26,0.000293,7]
[392775615,1761940257014,-2524.75,0.00029315,30]
[392775616,1761940257023,-237.13,0.00029315,13]
[392775617,1761940257032,-750.0,0.00029315,2]
[392775618,1761940257041,-1402.17805724,0.000294,5]
[392775619,1761940257050,-179.463212,0.0002948,2]
[392775620,1761940257059,-154.730149,0.0002948,2]
[392775621,1761940257068,-152.530922,0.0002948,2]
[392775622,1761940257078,-152.530922,0.0002948,2]
[392775623,1761940257087,-151.174963,0.0002948,2]
[392775624,1761940257096,-247.654544,0.0002948,2]
[392775625,1761940257106,-400.688541,0.0002948,2]
[392775626,1761940257117,-474.5,0.00029519,15]
[392775627,1761940257127,-2524.75,0.00029589,30]
[392775628,1761940257138,-237.13,0.00029589,14]
[392775629,1761940257148,-750.0,0.00029589,2]
[392775630,1761940257159,-152.0,0.00029599,13]
[392775631,1761940257168,-216.95,0.00029629,30]
[392775632,1761940257178,-404.46081276,0.000297,7]
[392775633,1761940257189,-500.0,0.00029703,7]
[392775634,1761940257198,-900.0,0.00029782,7]
[392775635,1761940257209,-1200.0,0.00029782,7]
[392775636,1761940257219,-500.0,0.00029831,7]
[392775637,1761940257230,-2000.0,0.0002985,2]
[392775638,1761940257239,-2000.0,0.0002985,2]
[392775639,1761940257248,-2000.0,0.0002985,2]
[392775640,1761940257262,-2000.0,0.0002985,2]
[392775641,1761940257271,-356.77608594,0.00029856,7]
[392775642,1761940257281,-2524.75,0.00029863,30]
[392775643,1761940257291,-237.13,0.00029863,14]
[392775644,1761940257300,-750.0,0.00029863,2]
[392775645,1761940257309,-500.0,0.00029887,7]
[392775646,1761940257319,-1000.0,0.00029888,2]
[392775647,1761940257328,-247.654544,0.000299,30]
[392775648,1761940257337,-400.688541,0.000299,30]
[392775649,1761940257346,-1000.0,0.0002997,2]
[392775650,1761940257356,-165.68141328,0.00029997,7]
[392775651,1761940257365,-762.02925768,0.00029998,7]
[392775652,1761940257374,-299706.15597233,0.0003,2]
[392775653,1761940257386,-96167.43468617,0.0003,2]
[392775654,1761940258110,-151.0,0.0002,7]
[392775655,1761940258119,-176.7,0.00024213,2]
[392775656,1761940258129,-151.0,0.000249,7]
[392775657,1761940258138,-151.0,0.000249,7]
[392775658,1761940258147,-2999.06049392,0.0003,2]
[392775659,1761940258165,-318.38750624,0.0003,2]
[392775660,1761940258176,-4216.18691747,0.0003,2]
[392775661,1761940258188,-649.87999794,0.0003,2]
[392775671,1761940626728,-500.0,0.00013655,2]
[392775672,1761940626751,-202.08682033,0.00013699,2]
[392775673,1761940629151,-152.35,0.00013699,2]
[392775674,1761940632537,-175.47370159,0.00013699,2]
[392775676,1761940671655,-261.55530568,0.00013631,2]
[392775677,1761940701662,-70.68458701,0.00013631,2]
[392775678,1761940701683,-213.97043748,0.00013665,2]
[392775680,1761940806635,-175.47370159,0.00013599,2]
[392775681,1761940806660,-500.0,0.00013599,2]
[392775682,1761940806684,-19.55295099,0.00013665,2]
[392775693,1761940909142,500.0,0.0002997,120]
[392775694,1761940942895,500.0,0.0002997,120]
[392775695,1761940943138,500.0,0.0002998,120]
[392775876,1761941048685,-215.4411206,0.00013682,2]
[392775877,1761941050844,500.0,0.0002997,120]
[392775878,1761941051081,519.19897658,0.0002998,120]
[392775893,1761941378601,-34.5588794,0.00013682,2]
[392775894,1761941378630,-26.22947808,0.00013699,2]
[392775895,1761941378654,-203.68029923,0.00014078,2]
[392775900,1761941431708,-250.0,0.00014173,2]
[392775901,1761941431718,-200.0,0.00014267,2]
[392775902,1761941431727,-436.73,0.00014331,2]
[392775903,1761941431737,-150.0,0.00014347,2]
[392775904,1761941431746,-250.0,0.00014407,2]
[392775905,1761941431757,-211.71268935,0.00014502,2]
[392775906,1761941431766,-1288.90352921,0.00014673,2]
[392775907,1761941431775,-150.0,0.00014699,2]
[392775908,1761941431785,-1200.0,0.00014699,2]
[392775909,1761941431794,-300.0,0.00014699,2]
[392775910,1761941431804,-167.81234494,0.000147,2]
[392775911,1761941431814,-150.99,0.000147,2]
[392775912,1761941431823,-1451.06,0.000147,2]
[392775913,1761941431833,-299.99,0.000147,2]
[392775914,1761941431842,-11735.58641397,0.000147,2]
[392775915,1761941431854,-10685.60358603,0.000147,2]
[392775916,1761941431864,-1288.90352921,0.000147,2]
[392775917,1761941431873,-5562.55,0.00014772,2]
[392775918,1761941431882,-8904.45,0.00014772,2]
[392775919,1761941431892,-533.15473545,0.00014773,2]
[392775920,1761941431901,-500.0,0.00014773,2]
[392775921,1761941431910,-508.46172367,0.00014773,2]
[392775922,1761941431919,-456.12908442,0.00014773,2]
[392775923,1761941431931,-43.87091558,0.00014773,2]
[392775924,1761941431942,-452.43648197,0.00014773,2]
[392775925,1761941431951,-500.0,0.00014773,2]
[392775926,1761941431961,-620.26432381,0.00014773,2]
[392775927,1761941431970,-500.0,0.00014773,2]
[392775928,1761941431979,-500.0,0.00014773,2]
[392775929,1761941431989,-501.60002589,0.00014773,2]
[392775930,1761941431999,-261.74,0.00014773,2]
[392775931,1761941432008,-151.0,0.00014791,2]
[392775932,1761941432017,-151.0,0.00014791,2]
[392775933,1761941432027,-151.0,0.00014791,2]
[392775934,1761941432036,-151.0,0.00014791,2]
[392775935,1761941432046,-151.0,0.00014791,2]
[392775936,1761941432055,-151.0,0.00014791,2]
[392775937,1761941432064,-151.0,0.00014791,2]
[392775938,1761941432074,-151.0,0.00014791,2]
[392775939,1761941432084,-151.0,0.00014791,2]
[392775940,1761941432093,-151.0,0.00014791,2]
[392775941,1761941432103,-151.0,0.00014791,2]
[392775942,1761941432112,-151.0,0.00014791,2]
[392775943,1761941432121,-151.0,0.00014791,2]
[392775944,1761941432131,-151.0,0.00014791,2]
[392775945,1761941432140,-174.82099418,0.00014791,2]
[392775946,1761941432150,-151.0,0.00014791,2]
[392775947,1761941432159,-151.0,0.00014791,2]
[392775948,1761941432169,-151.0,0.00014791,2]
[392775949,1761941432178,-151.0,0.00014791,2]
[392775950,1761941432189,-151.0,0.00014791,2]
[392775951,1761941432198,-151.0,0.00014791,2]
[392775952,1761941432207,-151.0,0.00014791,2]
[392775953,1761941432216,-151.0,0.00014791,2]
[392775954,1761941432225,-151.0,0.00014791,2]
[392775955,1761941432235,-151.0,0.00014791,2]
[392775956,1761941432244,-500.0,0.00014799,2]
[392775957,1761941432253,-500.0,0.00014799,2]
[392775958,1761941432262,-500.0,0.00014799,2]
[392775959,1761941432271,-500.0,0.00014799,2]
[392775960,1761941432280,-500.0,0.00014799,2]
[392775961,1761941432290,-193.66885546,0.00014799,2]
[392775962,1761941432299,-2057.03038292,0.00014799,2]
[392775963,1761941432308,-500.0,0.00014799,2]
[392775964,1761941432317,-5169.5029,0.000148,2]
[392775965,1761941432326,-18691.94640721,0.000148,2]
[392775966,1761941432358,-513.921987,0.00014101,2]
[392775967,1761941432367,-172.74527883,0.000148,2]
[392775968,1761941432378,-255.51004428,0.000148,2]
[392775969,1761941432408,-3773.8207,0.000148,2]
[392776161,1761941437704,-394.14575585,0.000148,2]
[392776162,1761941437716,-3924.23279996,0.000148,2]
[392776163,1761941437749,-14508.96806319,0.000148,2]
[392776164,1761941437762,-258.11007742,0.000148,2]
[392776165,1761941437774,-2099.98863533,0.000148,2]
[392776173,1761941439384,-309.60591375,0.000148,2]
[392776174,1761941440143,-1.6e-07,0.000148,2]
[392776175,1761941440159,-1122.73954307,0.000148,2]
[392776176,1761941440690,-597.945,0.000148,2]
[392776189,1761941442877,-267.4633109,0.000148,2]
[392776208,1761941445841,-996.1,0.000148,2]
[392776221,1761942198406,500.0,0.00025424,120]
[392776223,1761942246241,414.85,7.657e-05,2]
[392776224,1761942246313,414.85,8.06e-05,2]
[392776225,1761942246399,414.85,8.463e-05,2]
[392776226,1761942246811,414.85,8.866e-05,2]
[392776227,1761942247028,414.85,9.269e-05,2]
[392776228,1761942247237,414.85,9.672e-05,2]
[392776229,1761942247465,414.85,0.00010075,2]
[392776230,1761942247673,414.85,0.00010478,2]
[392776231,1761942247880,414.85,0.00010881,2]
[392776232,1761942248084,414.85,0.00011284,2]
[392776233,1761942248302,414.85,0.00011687,2]
[392776234,1761942248538,414.85,0.0001209,2]
[392776235,1761942248741,414.85,0.00012493,2]
[392776236,1761942249199,414.85,0.00012896,2]
[392776237,1761942249303,414.85,0.00013299,2]
[392776239,1761942304633,185.0,0.00023339,120]
[392776240,1761942305940,185.0,0.00024506,120]
[392776242,1761942317190,500.0,0.0002988,120]
[392776243,1761942317466,500.0,0.0002998,120]
[392776244,1761942317900,500.0,0.0002998,120]
[392776245,1761942318169,500.0,0.0002998,120]
[392776246,1761942318399,501.36,0.0002998,120]
[392776248,1761942332959,500.0,0.0002988,120]
[392776249,1761942333141,500.0,0.0002998,120]
[392776250,1761942333368,500.0,0.0002998,120]
[392776251,1761942333611,500.0,0.0002998,120]
[392776252,1761942333914,500.0,0.0002998,120]
[392776253,1761942334144,500.0,0.00029996,120]
[392776254,1761942334408,500.0,0.00029996,120]
[392776255,1761942334633,636.52589726,0.00029996,120]
[392776256,1761942360472,4865.63961745,8e-05,2]
[392776264,1761942506541,523.33,0.0002767,120]
[392776265,1761942506664,523.33,0.0002996,120]
[392776266,1761942506899,523.33,0.00029976,120]
[392776267,1761942507132,523.33,0.00029976,120]
[392776268,1761942507375,523.33,0.00029986,120]
[392776269,1761942507624,523.33,0.00029996,120]
[392776270,1761942507677,998.25,0.00030137,120]
[392776271,1761942507873,523.33,0.00029996,120]
[392776272,1761942508167,523.33,0.00029996,120]
[392776273,1761942508410,523.33,0.00029996,120]
[392776275,1761942508670,523.33,0.00029996,120]
[392776276,1761942508934,523.33,0.00029999,120]
[392776277,1761942509233,523.33,0.00029999,120]
[392776278,1761942509435,523.33,0.00029999,120]
[392776279,1761942509682,523.33,0.00029999,120]
[392776280,1761942509904,523.33,0.00029999,120]
[392776282,1761942510143,523.33,0.00029999,120]
[392776283,1761942510384,523.33,0.00029999,120]
[392776306,1761942631803,-414.85,0.00013702,2]
[392776307,1761942631813,-150.0,0.00013884,2]
[392776308,1761942631822,-5538.15607683,0.00013894,2]
[392776310,1761942631856,-1404.96951037,0.00013894,2]
[392776311,1761942631869,-4930.84367137,0.00013894,2]
[392776312,1761942631883,-926.7019046,0.00013894,2]
[392776313,1761942632012,-2270.05883683,0.00013894,2]
[392776314,1761942632022,-500.0,0.00013937,2]
[392776315,1761942632031,-492.36695992,0.0001399,2]
[392776316,1761942632041,-264.46865671,0.00014005,2]
[392776317,1761942632053,-162.67497404,0.00014005,2]
[392776318,1761942632063,-414.85,0.00014105,2]
[392776319,1761942632073,-2578.74519043,0.0001439,2]
[392776320,1761942632082,-414.85,0.00014508,2]
[392776321,1761942632092,-887.83182224,0.00014574,2]
[392776322,1761942632106,-1200.0,0.00014649,2]
[392776323,1761942632115,-867.14827,0.0001465,2]
[392776324,1761942632124,-218.77590319,0.00014658,2]
[392776325,1761942632134,-133.21709489,0.00014691,2]
[392776326,1761942632146,-257.66300511,0.00014691,2]
[392776327,1761942632156,-77.40718058,0.00014785,2]
[392776328,1761942632168,-182.71281942,0.00014785,2]
[392776329,1761942632178,-376.53636928,0.00014785,2]
[392776330,1761942632194,-123.46363072,0.00014785,2]
[392776331,1761942632204,-300.0,0.00014793,2]
[392776332,1761942632213,-150.0,0.00014793,2]
[392776333,1761942632223,-4598.6740308,0.00014794,2]
[392776334,1761942632232,-4535.68488222,0.00014794,2]
[392776335,1761942632244,-614.37390575,0.00014794,2]
[392776336,1761942632256,-24075.66264393,0.00014794,2]
[392776337,1761942632265,-3477.563069,0.00014794,2]
[392776338,1761942632275,-423.8011367,0.00014794,2]
[392776339,1761942632284,-4909.0,0.00014878,2]
[392776340,1761942632293,-575.7565068,0.000149,2]
[392776342,1761942632303,-5720.82730143,0.000149,2]
[392776344,1761942632312,-1047.81017136,0.000149,2]
[392776346,1761942632321,-168.0,0.00014909,2]
[392776348,1761942632331,-414.85,0.00014912,2]
[392776349,1761942632340,-4909.0,0.00014926,2]
[392776351,1761942632350,-1835.2365,0.00014932,2]
[392776353,1761942632359,-4909.0,0.00014971,2]
[392776355,1761942632368,-151.0,0.00014971,2]
[392776358,1761942632377,-151.0,0.00014971,2]
[392776361,1761942632387,-151.0,0.00014971,2]
[392776363,1761942632396,-151.0,0.00014971,2]
[392776366,1761942632405,-151.0,0.00014971,2]
[392776369,1761942632414,-151.0,0.00014971,2]
[392776372,1761942632423,-151.0,0.00014971,2]
[392776376,1761942632438,-151.0,0.00014971,2]
[392776379,1761942632447,-151.0,0.00014971,2]
[392776382,1761942632457,-151.0,0.00014971,2]
[392776385,1761942632466,-151.0,0.00014971,2]
[392776388,1761942632477,-151.0,0.00014971,2]
[392776391,1761942632487,-151.0,0.00014971,2]
[392776394,1761942632496,-151.0,0.00014971,2]
[392776397,1761942632506,-151.0,0.00014971,2]
[392776400,1761942632515,-151.0,0.00014971,2]
[392776403,1761942632524,-151.0,0.00014971,2]
[392776405,1761942632534,-151.0,0.00014971,2]
[392776407,1761942632543,-151.0,0.00014971,2]
[392776408,1761942632552,-151.0,0.00014971,2]
[392776410,1761942632562,-151.0,0.00014971,2]
[392776412,1761942632571,-151.0,0.00014971,2]
[392776414,1761942632580,-151.0,0.00014971,2]
[392776416,1761942632589,-151.0,0.00014971,2]
[392776418,1761942632599,-151.0,0.00014971,2]
[392776420,1761942632608,-151.0,0.00014971,2]
[392776422,1761942632618,-200.0,0.00014971,2]
[392776424,1761942632627,-151.0,0.00014971,2]
[392776426,1761942632638,-151.0,0.00014971,2]
[392776427,1761942632647,-151.0,0.00014971,2]
[392776428,1761942632656,-151.0,0.00014971,2]
[392776429,1761942632665,-151.0,0.00014971,2]
[392776430,1761942632674,-151.0,0.00014971,2]
[392776431,1761942632684,-500.0,0.00014971,2]
[392776432,1761942632694,-500.0,0.00014971,2]
[392776433,1761942632703,-500.0,0.00014971,2]
[392776434,1761942632717,-500.0,0.00014973,2]
[392776435,1761942632725,-500.0,0.00014973,2]
[392776436,1761942632734,-500.0,0.00014973,2]
[392776437,1761942632743,-170.39587519,0.00014973,2]
[392776438,1761942632753,-500.0,0.00014973,2]
[392776439,1761942632763,-500.0,0.00014973,2]
[392776441,1761942632772,-234.07088584,0.00014973,2]
[392776443,1761942632782,-500.0,0.00014973,2]
[392776445,1761942632792,-501.05311295,0.00014973,2]
[392776447,1761942632801,-500.0,0.00014973,2]
[392776449,1761942632811,-65792.85407211,0.0001498,2]
[392776451,1761942632820,-4909.0,0.00014981,2]
[392776453,1761942632829,-500.0,0.00014984,2]
[392776455,1761942632839,-500.0,0.00014984,2]
[392776457,1761942632848,-500.0,0.00014984,2]
[392776459,1761942632858,-500.0,0.00014984,2]
[392776461,1761942632868,-500.0,0.00014984,2]
[392776463,1761942632877,-500.0,0.00014984,2]
[392776465,1761942632886,-500.0,0.00014984,2]
[392776467,1761942632895,-500.0,0.00014984,2]
[392776469,1761942632905,-500.0,0.00014984,2]
[392776471,1761942632914,-500.0,0.00014984,2]
[392776473,1761942632923,-500.0,0.00014984,2]
[392776475,1761942632932,-500.0,0.00014984,2]
[392776477,1761942632943,-235.7277359,0.00014984,2]
[392776478,1761942632953,-521.21172673,0.00014984,2]
[392776480,1761942632963,-500.0,0.00014984,2]
[392776482,1761942632972,-31104.29260018,0.00014985,2]
[392776484,1761942632981,-854.60552784,0.0001499,2]
[392776486,1761942632991,-854.60552784,0.0001499,2]
[392776488,1761942633000,-854.60552784,0.0001499,2]
[392776490,1761942633009,-500.0,0.00014999,2]
[392776492,1761942633019,-486.93571584,0.00014999,2]
[392776494,1761942633028,-500.0,0.00014999,2]
[392776496,1761942633038,-185.09415665,0.00014999,2]
[392776498,1761942633047,-282.98064675,0.00014999,2]
[392776500,1761942633056,-510.21190046,0.00014999,2]
[392776502,1761942633066,-500.0,0.00014999,2]
[392776504,1761942633075,-500.0,0.00014999,2]
[392776506,1761942633085,-500.0,0.00014999,2]
[392776508,1761942633095,-155.667,0.00014999,2]
[392776510,1761942633104,-500.0,0.00014999,2]
[392776512,1761942633114,-500.0,0.00014999,2]
[392776514,1761942633123,-610.18187241,0.00014999,2]
[392776516,1761942633132,-671.66837628,0.00014999,2]
[392776518,1761942633142,-265405.0937689,0.00015,2]
[392776581,1761942633896,-447.29999534,0.00015,2]
[392776582,1761942633907,-544.02,0.00015,2]
[392776588,1761942637842,-1110.9098,0.000149,2]
[392776589,1761942637899,-20476.9320169,0.000149,2]
[392776590,1761942638009,-41678.93220567,0.000149,2]
[392776591,1761942638018,-6812197.31161043,0.00015,2]
[392776592,1761942638030,-15219.9676908,0.00015,2]
[392776593,1761942638041,-13282.01259497,0.00015,2]
[392776594,1761942638054,-15814.86088969,0.00015,2]
[392776595,1761942638066,-5744.29024861,0.00015,2]
[392776598,1761942638077,-1075.99911345,0.00015,2]
[392776605,1761942639927,-123875.48557529,0.00015,2]
[392776606,1761942640001,-500.0,0.00014984,2]
[392776607,1761942640011,-1093.15254769,0.00015,2]
[392776608,1761942640022,-2240.55432072,0.00015,2]
[392776609,1761942640034,-4278.40042602,0.00015,2]
[392776610,1761942640196,-146117.83433019,0.00015,2]
[392776624,1761942642862,-303.34019781,0.00015,2]
[392776625,1761942643024,-500.0,0.00014979,2]
[392776626,1761942643034,-192.85863732,0.00014979,2]
[392776627,1761942643044,-64.47897404,0.00015,2]
[392776628,1761942643055,-619.26758864,0.00015,2]
[392776633,1761942645990,-320.2875087,0.00015,2]
[392776635,1761942646110,-5019.40087353,0.00015,2]
[392776638,1761942797803,500.0,0.00026098,120]
[392776639,1761942813393,999.0,0.0001425,3]
[392776646,1761943221737,-819.70743842,0.0001393,2]
[392776650,1761943431731,-429.25,0.00013866,2]
[392776651,1761943431764,-42.94124027,0.00013879,2]
[392776652,1761943446613,-299.50036308,0.00013699,2]
[392776654,1761943461670,-172.69963692,0.00013699,2]
[392776655,1761943461692,-159.54025561,0.00013699,2]
[392776656,1761943515405,150.0,0.00013488,2]
[392776657,1761943515667,150.0,0.00013488,2]
[392776658,1761943515831,150.0,0.00013488,2]
[392776659,1761943520899,150.0,0.00013488,2]
[392776660,1761943522137,150.0,0.00013488,2]
[392776662,1761943523652,150.0,0.00013488,2]
[392776663,1761943524284,-139.95974439,0.00013699,2]
[392776664,1761943524308,-233.44885561,0.00013789,2]
[392776665,1761943527149,-66.55114439,0.00013789,2]
[392776666,1761943528490,150.80095926,0.00013488,2]
[392776667,1761943534297,150.0,0.00013488,2]
[392776668,1761943534918,153.44563625,0.00013488,2]
[392776669,1761943535010,150.0,0.00013488,2]
[392776670,1761943535173,150.0,0.00013488,2]
[392776671,1761943538342,150.0,0.00013488,2]
[392776673,1761943583651,-173.18554085,0.00013696,2]
[392776674,1761943587372,-173.18554085,0.00013696,2]
[392776676,1761943643117,-196.92758929,0.00013664,2]
[392776677,1761943643592,-3.07241071,0.00013664,2]
[392776678,1761943643613,-193.85517858,0.00013696,2]
[392776683,1761943735969,613.145285,0.0001353,2]
[392776684,1761943747158,-161.318,0.00013599,2]
[392776685,1761943747178,-141.75441071,0.00013696,2]
[392776689,1761943831987,-250.0,0.00013661,2]
[392776690,1761943831997,-1000.0,0.00013689,2]
[392776691,1761943832006,-1095.78932901,0.00013696,2]
[392776692,1761943832017,-623.64,0.00013699,2]
[392776693,1761943832026,-396.31970077,0.0001385,2]
[392776694,1761943832035,-150.0,0.00013862,2]
[392776695,1761943832045,-107.05875973,0.00013879,2]
[392776696,1761943832055,-1805.66,0.00013882,2]
[392776697,1761943832064,-1200.0,0.00013894,2]
[392776698,1761943832074,-300.0,0.00013895,2]
[392776699,1761943832083,-1200.0,0.00013895,2]
[392776700,1761943832092,-10937.66,0.00013896,2]
[392776701,1761943832101,-511.16260451,0.0001393,2]
[392776702,1761943832113,-539.95972738,0.0001393,2]
[392776703,1761943832124,-2490.87022969,0.0001393,2]
[392776704,1761943832134,-213.72,0.00013931,2]
[392776705,1761943832144,-208.29,0.00013985,2]
[392776706,1761943832154,-150.0,0.00013987,2]
[392776707,1761943832163,-150.0,0.00013987,2]
[392776708,1761943832172,-150.0,0.00013987,2]
[392776709,1761943832181,-150.0,0.00014237,2]
[392776710,1761943832190,-150.0,0.00014487,2]
[392776711,1761943832199,-150.0,0.00014487,2]
[392776712,1761943832208,-150.0,0.00014487,2]
[392776713,1761943832218,-221.61206356,0.00014596,2]
[392776714,1761943832227,-150.0,0.00014612,2]
[392776715,1761943832238,-892.97880699,0.00014702,2]
[392776716,1761943832247,-208.29,0.00014761,2]
[392776717,1761943832257,-1000.0,0.00014799,2]
[392776718,1761943832266,-474.3805199,0.00014799,2]
[392776719,1761943832277,-2025.6194801,0.00014799,2]
[392776720,1761943832286,-3642.19021206,0.00014799,2]
[392776721,1761943832297,-163.55430187,0.00014799,2]
[392776722,1761943832306,-3642.19021205,0.0001481,2]
[392776723,1761943832316,-3642.19021205,0.00014821,2]
[392776724,1761943832326,-3642.19021205,0.00014833,2]
[392776725,1761943832335,-163.55430187,0.00014833,2]
[392776726,1761943832345,-3642.19021205,0.00014844,2]
[392776727,1761943832354,-11333.02241873,0.0001485,2]
[392776729,1761943832363,-3642.19021205,0.00014855,2]
[392776731,1761943832372,-3642.19021205,0.00014866,2]
[392776732,1761943832381,-163.55430187,0.00014866,2]
[392776735,1761943832390,-150.0,0.00014872,2]
[392776737,1761943832399,-500.0,0.00014873,2]
[392776739,1761943832408,-503.91202727,0.00014873,2]
[392776742,1761943832417,-502.67293591,0.00014873,2]
[392776746,1761943832426,-500.0,0.00014873,2]
[392776749,1761943832435,-500.0,0.00014873,2]
[392776751,1761943832445,-500.0,0.00014873,2]
[392776752,1761943832454,-500.0,0.00014873,2]
[392776753,1761943832463,-500.0,0.00014873,2]
[392776754,1761943832472,-500.0,0.00014873,2]
[392776755,1761943832482,-500.0,0.00014873,2]
[392776756,1761943832491,-500.0,0.00014873,2]
[392776757,1761943832500,-500.0,0.00014873,2]
[392776758,1761943832509,-500.0,0.00014873,2]
[392776759,1761943832518,-500.0,0.00014873,2]
[392776760,1761943832528,-500.0,0.00014873,2]